[Event "NJSK 2023 Meisjes C"]
[Site "Almelo, Netherlands"]
[Date "2023.05.06"]
[Round "7.1"]
[White "Liu, Chia-Yun"]
[Black "Westerhof, Fleur"]
[Result "0-1"]
[TimeControl "90min/40moves + 30min + 30sec/move"]
[WhiteElo "1470"]
[BlackElo "1743"]

1. e4 {[%clk 01:30:57]} {[%emt 00:00:02]} e5 {[%clk 01:30:56]} {[%emt
00:00:04]} 2. Nf3 {[%clk 01:31:18]} {[%emt 00:00:10]} Nc6 {[%clk 01:31:18]}
{[%emt 00:00:08]} 3. Bc4 {[%clk 01:31:35]} {[%emt 00:00:13]} Bc5 {[%clk
01:31:42]} {[%emt 00:00:06]} 4. c3 {[%clk 01:31:56]} {[%emt 00:00:09]} Nf6
{[%clk 01:31:53]} {[%emt 00:00:19]} 5. d3 {[%clk 01:32:12]} {[%emt 00:00:14]}
h6 {[%clk 01:32:04]} {[%emt 00:00:18]} 6. b4 {[%clk 01:30:23]} {[%emt
00:02:19]} Bb6 {[%clk 01:32:10]} {[%emt 00:00:24]} 7. a4 {[%clk 01:29:51]}
{[%emt 00:01:03]} a6 {[%clk 01:32:20]} {[%emt 00:00:20]} 8. O-O {[%clk
01:29:31]} {[%emt 00:00:49]} O-O {[%clk 01:31:08]} {[%emt 00:01:42]} 9. Nbd2
{[%clk 01:27:55]} {[%emt 00:02:06]} d6 {[%clk 01:29:57]} {[%emt 00:01:41]} 10.
h3 {[%clk 01:26:55]} {[%emt 00:01:30]} d5 {[%clk 01:22:11]} {[%emt 00:08:16]}
11. exd5 {[%clk 01:18:47]} {[%emt 00:10:09]} Nxd5 {[%clk 01:20:41]} {[%emt
00:01:59]} 12. Re1 {[%clk 01:17:06]} {[%emt 00:02:12]} Nf4 {[%clk 01:08:15]}
{[%emt 00:12:55]} 13. Ne4 {[%clk 01:03:37]} {[%emt 00:14:00]} Ng6 {[%clk
01:04:56]} {[%emt 00:03:48]} 14. Be3 {[%clk 00:59:04]} {[%emt 00:05:04]} Bxe3
{[%clk 01:02:45]} {[%emt 00:02:41]} 15. fxe3 {[%clk 00:58:40]} {[%emt
00:00:54]} b6 {[%clk 00:56:50]} {[%emt 00:06:25]} 16. d4 {[%clk 00:54:05]}
{[%emt 00:05:05]} Bb7 {[%clk 00:51:24]} {[%emt 00:05:56]} 17. Qd3 {[%clk
00:49:28]} {[%emt 00:05:07]} Kh8 {[%clk 00:48:15]} {[%emt 00:03:38]} 18. Ng3
{[%clk 00:44:30]} {[%emt 00:05:29]} Qd7 {[%clk 00:39:48]} {[%emt 00:08:56]} 19.
b5 {[%clk 00:38:03]} {[%emt 00:06:57]} axb5 {[%clk 00:38:00]} {[%emt 00:02:18]}
20. Bxb5 {[%clk 00:37:00]} {[%emt 00:01:33]} Qe7 {[%clk 00:34:58]} {[%emt
00:03:31]} 21. d5 {[%clk 00:31:21]} {[%emt 00:06:11]} Na5 {[%clk 00:31:44]}
{[%emt 00:03:44]} 22. e4 {[%clk 00:29:25]} {[%emt 00:02:25]} Nb3 {[%clk
00:30:33]} {[%emt 00:01:40]} 23. Ra2 {[%clk 00:27:37]} {[%emt 00:02:19]} Nc5
{[%clk 00:28:59]} {[%emt 00:02:04]} 24. Qd2 {[%clk 00:26:48]} {[%emt 00:01:20]}
Rfd8 {[%clk 00:27:04]} {[%emt 00:02:25]} 25. Nf5 {[%clk 00:24:37]} {[%emt
00:02:41]} Qf6 {[%clk 00:24:39]} {[%emt 00:02:54]} 26. Qe3 {[%clk 00:23:08]}
{[%emt 00:01:58]} Ra5 {[%clk 00:23:16]} {[%emt 00:01:54]} 27. Rf1 {[%clk
00:21:17]} {[%emt 00:02:20]} Nxe4 {[%clk 00:18:39]} {[%emt 00:05:08]} 28. Nxh6
{[%clk 00:16:31]} {[%emt 00:05:17]} gxh6 {[%clk 00:15:28]} {[%emt 00:03:41]} 29.
Qxh6+ {[%clk 00:16:49]} {[%emt 00:00:12]} Kg8 {[%clk 00:15:47]} {[%emt
00:00:11]} 30. Bd3 {[%clk 00:14:02]} {[%emt 00:03:17]} Nd6 {[%clk 00:13:57]}
{[%emt 00:02:20]} 31. Ng5 {[%clk 00:11:39]} {[%emt 00:02:54]} Qg7 {[%clk
00:13:51]} {[%emt 00:00:35]} 32. Qxg7+ {[%clk 00:09:49]} {[%emt 00:02:22]} Kxg7
{[%clk 00:13:38]} {[%emt 00:00:43]} 33. Raf2 {[%clk 00:07:37]} {[%emt
00:02:41]} Bxd5 {[%clk 00:10:58]} {[%emt 00:03:09]} 34. c4 {[%clk 00:06:06]}
{[%emt 00:02:01]} Nxc4 {[%clk 00:09:14]} {[%emt 00:02:14]} 35. Bxc4 {[%clk
00:05:24]} {[%emt 00:01:12]} Bxc4 {[%clk 00:09:08]} {[%emt 00:00:36]} 36. Nxf7
{[%clk 00:05:03]} {[%emt 00:00:51]} Rd7 {[%clk 00:08:19]} {[%emt 00:01:19]} 37.
Re1 {[%clk 00:03:29]} {[%emt 00:02:04]} Rxf7 {[%clk 00:07:58]} {[%emt
00:00:51]} 38. Rxf7+ {[%clk 00:03:37]} {[%emt 00:00:21]} Kxf7 {[%clk 00:08:23]}
{[%emt 00:00:05]} 39. Rd1 {[%clk 00:03:34]} {[%emt 00:00:33]} Ke6 {[%clk
00:08:30]} {[%emt 00:00:23]} 40. Kf2 {[%clk 00:03:17]} {[%emt 00:00:47]} Rxa4
{[%clk 00:08:46]} {[%emt 00:00:14]} 41. Rc1 {[%clk 00:03:27]} {[%emt 00:00:20]}
b5 {[%clk 00:09:07]} {[%emt 00:00:10]} 0-1

[Event "NJSK 2023 Meisjes C"]
[Site "Almelo, Netherlands"]
[Date "2023.05.06"]
[Round "7.2"]
[White "Hagen, Carlijn"]
[Black "Koorevaar, Sarah-Joy"]
[Result "1-0"]
[TimeControl "90min/40moves + 30min + 30sec/move"]
[WhiteElo "1132"]
[BlackElo "1067"]

1. d4 {[%clk 01:30:57]} {[%emt 00:00:03]} d5 {[%clk 01:30:57]} {[%emt
00:00:03]} 2. Bf4 {[%clk 01:31:20]} {[%emt 00:00:07]} c5 {[%clk 01:31:11]}
{[%emt 00:00:17]} 3. c3 {[%clk 01:31:35]} {[%emt 00:00:15]} cxd4 {[%clk
01:31:20]} {[%emt 00:00:20]} 4. cxd4 {[%clk 01:31:33]} {[%emt 00:00:31]} Nc6
{[%clk 01:31:42]} {[%emt 00:00:08]} 5. e3 {[%clk 01:31:44]} {[%emt 00:00:19]}
Bf5 {[%clk 01:30:54]} {[%emt 00:01:18]} 6. Bd3 {[%clk 01:31:34]} {[%emt
00:00:40]} Qd7 {[%clk 01:25:37]} {[%emt 00:05:47]} 7. Bxf5 {[%clk 01:22:46]}
{[%emt 00:09:18]} Qxf5 {[%clk 01:25:46]} {[%emt 00:00:21]} 8. Qb3 {[%clk
01:22:54]} {[%emt 00:00:22]} b6 {[%clk 01:20:38]} {[%emt 00:05:39]} 9. Qb5
{[%clk 01:22:37]} {[%emt 00:00:45]} Rc8 {[%clk 01:17:17]} {[%emt 00:03:53]} 10.
Nc3 {[%clk 01:21:26]} {[%emt 00:01:41]} Nf6 {[%clk 01:15:31]} {[%emt 00:02:17]}
11. Nf3 {[%clk 01:20:54]} {[%emt 00:01:01]} g6 {[%clk 01:12:38]} {[%emt
00:03:23]} 12. Ne5 {[%clk 01:20:16]} {[%emt 00:01:08]} Qe6 {[%clk 01:12:34]}
{[%emt 00:00:35]} 13. Rc1 {[%clk 01:20:01]} {[%emt 00:00:43]} Bg7 {[%clk
01:05:22]} {[%emt 00:07:44]} 14. Na4 {[%clk 01:17:54]} {[%emt 00:02:37]} O-O
{[%clk 01:00:39]} {[%emt 00:05:13]} 15. Rxc6 {[%clk 01:17:26]} {[%emt
00:00:57]} Qf5 {[%clk 00:57:56]} {[%emt 00:03:13]} 16. O-O {[%clk 01:16:54]}
{[%emt 00:01:02]} Ne4 {[%clk 00:55:08]} {[%emt 00:03:18]} 17. Rxc8 {[%clk
01:14:08]} {[%emt 00:03:16]} Rxc8 {[%clk 00:55:13]} {[%emt 00:00:26]} 18. Qxd5
{[%clk 01:13:38]} {[%emt 00:00:59]} Nd2 {[%clk 00:52:06]} {[%emt 00:03:38]} 19.
Re1 {[%clk 01:09:19]} {[%emt 00:04:48]} b5 {[%clk 00:44:55]} {[%emt 00:07:42]}
20. Nc5 {[%clk 01:08:02]} {[%emt 00:01:47]} Nc4 {[%clk 00:39:41]} {[%emt
00:05:44]} 21. Ncd3 {[%clk 01:02:48]} {[%emt 00:05:43]} g5 {[%clk 00:32:21]}
{[%emt 00:07:50]} 22. Bxg5 {[%clk 00:56:08]} {[%emt 00:07:10]} Qxg5 {[%clk
00:27:31]} {[%emt 00:05:20]} 23. Qxf7+ {[%clk 00:55:53]} {[%emt 00:00:45]} Kh8
{[%clk 00:27:52]} {[%emt 00:00:09]} 24. Qe6 {[%clk 00:56:06]} {[%emt 00:00:16]}
Bxe5 {[%clk 00:22:31]} {[%emt 00:05:51]} 25. Qxc8+ {[%clk 00:55:20]} {[%emt
00:01:16]} Kg7 {[%clk 00:23:00]} {[%emt 00:00:02]} 26. Nxe5 {[%clk 00:55:03]}
{[%emt 00:00:47]} Nd2 {[%clk 00:23:14]} {[%emt 00:00:16]} 27. Qc5 {[%clk
00:54:15]} {[%emt 00:01:17]} 1-0

[Event "NJSK 2023 Meisjes C"]
[Site "Almelo, Netherlands"]
[Date "2023.05.06"]
[Round "7.3"]
[White "Van Apeldoorn, Vera"]
[Black "Fu, Janice"]
[Result "1/2-1/2"]
[TimeControl "90min/40moves + 30min + 30sec/move"]
[WhiteElo "1153"]
[BlackElo "1408"]

1. d4 {[%clk 01:30:58]} {[%emt 00:00:01]} d5 {[%clk 01:30:54]} {[%emt
00:00:06]} 2. c4 {[%clk 01:31:24]} {[%emt 00:00:04]} e6 {[%clk 01:31:17]}
{[%emt 00:00:07]} 3. Nc3 {[%clk 01:31:42]} {[%emt 00:00:13]} Nf6 {[%clk
01:31:31]} {[%emt 00:00:16]} 4. Bg5 {[%clk 01:31:50]} {[%emt 00:00:21]} Be7
{[%clk 01:29:55]} {[%emt 00:02:06]} 5. e3 {[%clk 01:31:42]} {[%emt 00:00:38]}
h6 {[%clk 01:28:24]} {[%emt 00:02:02]} 6. Bh4 {[%clk 01:28:12]} {[%emt
00:04:01]} c6 {[%clk 01:27:11]} {[%emt 00:01:43]} 7. Bd3 {[%clk 01:25:03]}
{[%emt 00:03:39]} dxc4 {[%clk 01:26:16]} {[%emt 00:01:25]} 8. Bxc4 {[%clk
01:23:57]} {[%emt 00:01:35]} b5 {[%clk 01:23:59]} {[%emt 00:02:48]} 9. Bd3
{[%clk 01:21:17]} {[%emt 00:03:10]} Nbd7 {[%clk 01:20:35]} {[%emt 00:03:54]} 10.
a3 {[%clk 01:14:56]} {[%emt 00:06:51]} Bb7 {[%clk 01:19:34]} {[%emt 00:01:31]}
11. Nf3 {[%clk 01:12:12]} {[%emt 00:03:13]} O-O {[%clk 01:18:27]} {[%emt
00:01:37]} 12. O-O {[%clk 01:12:30]} {[%emt 00:00:13]} a6 {[%clk 01:17:26]}
{[%emt 00:01:32]} 13. Re1 {[%clk 01:08:49]} {[%emt 00:04:10]} c5 {[%clk
01:15:17]} {[%emt 00:02:39]} 14. dxc5 {[%clk 01:05:22]} {[%emt 00:03:56]} Bxf3
{[%clk 01:12:36]} {[%emt 00:03:10]} 15. gxf3 {[%clk 01:01:04]} {[%emt
00:04:49]} Nxc5 {[%clk 01:11:27]} {[%emt 00:01:39]} 16. Bf1 {[%clk 00:58:57]}
{[%emt 00:02:37]} Qb6 {[%clk 01:05:21]} {[%emt 00:06:35]} 17. b4 {[%clk
00:53:51]} {[%emt 00:05:37]} Ncd7 {[%clk 01:02:07]} {[%emt 00:03:44]} 18. e4
{[%clk 00:49:45]} {[%emt 00:04:36]} Rad8 {[%clk 00:59:59]} {[%emt 00:02:38]} 19.
Qc2 {[%clk 00:47:59]} {[%emt 00:02:15]} Ne5 {[%clk 00:58:33]} {[%emt 00:01:56]}
20. Bg2 {[%clk 00:43:31]} {[%emt 00:04:58]} Nc4 {[%clk 00:56:30]} {[%emt
00:02:34]} 21. Red1 {[%clk 00:33:09]} {[%emt 00:10:52]} Rxd1+ {[%clk 00:53:42]}
{[%emt 00:03:18]} 22. Nxd1 {[%clk 00:30:11]} {[%emt 00:03:28]} Rd8 {[%clk
00:52:54]} {[%emt 00:01:17]} 23. Nb2 {[%clk 00:26:55]} {[%emt 00:03:46]} Nxb2
{[%clk 00:47:53]} {[%emt 00:05:31]} 24. Qxb2 {[%clk 00:26:53]} {[%emt
00:00:32]} Qd4 {[%clk 00:43:01]} {[%emt 00:05:22]} 25. Qxd4 {[%clk 00:23:42]}
{[%emt 00:03:42]} Rxd4 {[%clk 00:43:23]} {[%emt 00:00:07]} 26. Rc1 {[%clk
00:23:12]} {[%emt 00:01:00]} Rc4 {[%clk 00:38:49]} {[%emt 00:05:03]} 27. Rxc4
{[%clk 00:21:50]} {[%emt 00:01:54]} bxc4 {[%clk 00:39:11]} {[%emt 00:00:08]} 28.
Bf1 {[%clk 00:22:15]} {[%emt 00:00:04]} c3 {[%clk 00:39:31]} {[%emt 00:00:10]}
29. Bd3 {[%clk 00:22:17]} {[%emt 00:00:29]} g5 {[%clk 00:35:14]} {[%emt
00:04:47]} 30. Bg3 {[%clk 00:22:37]} {[%emt 00:00:10]} Nd7 {[%clk 00:34:55]}
{[%emt 00:00:48]} 31. Kf1 {[%clk 00:21:18]} {[%emt 00:01:50]} a5 {[%clk
00:33:52]} {[%emt 00:01:33]} 32. bxa5 {[%clk 00:20:16]} {[%emt 00:01:32]} Bxa3
{[%clk 00:34:03]} {[%emt 00:00:20]} 33. a6 {[%clk 00:20:21]} {[%emt 00:00:24]}
Bc5 {[%clk 00:33:31]} {[%emt 00:01:02]} 34. Ke2 {[%clk 00:19:54]} {[%emt
00:00:58]} Ba7 {[%clk 00:28:36]} {[%emt 00:05:25]} 35. Kd1 {[%clk 00:17:59]}
{[%emt 00:02:26]} Nc5 {[%clk 00:19:41]} {[%emt 00:09:24]} 36. Bb5 {[%clk
00:14:50]} {[%emt 00:03:38]} Nb3 {[%clk 00:19:07]} {[%emt 00:01:03]} 37. Be5
{[%clk 00:10:51]} {[%emt 00:04:31]} c2+ {[%clk 00:18:02]} {[%emt 00:01:36]} 38.
Kxc2 {[%clk 00:10:48]} {[%emt 00:00:32]} Nd4+ {[%clk 00:18:23]} {[%emt
00:00:08]} 39. Bxd4 {[%clk 00:10:58]} {[%emt 00:00:20]} Bxd4 {[%clk 00:18:49]}
{[%emt 00:00:04]} 40. Kd3 {[%clk 00:09:39]} {[%emt 00:01:49]} Bxf2 {[%clk
00:18:12]} {[%emt 00:01:07]} 41. Kc4 {[%clk 00:09:04]} {[%emt 00:01:05]} Kf8
{[%clk 00:18:12]} {[%emt 00:00:30]} 42. Ba4 {[%clk 00:06:52]} {[%emt 00:02:42]}
Ke7 {[%clk 00:16:34]} {[%emt 00:02:07]} 43. Kb5 {[%clk 00:05:08]} {[%emt
00:02:15]} Kd6 {[%clk 00:15:48]} {[%emt 00:01:16]} 44. Bc2 {[%clk 00:01:35]}
{[%emt 00:04:03]} Be3 {[%clk 00:14:32]} {[%emt 00:01:46]} 45. Bd3 {[%clk
00:29:30]} {[%emt 00:02:38]} Bf2 {[%clk 00:44:03]} {[%emt 00:00:56]} 46. Bc2
{[%clk 00:28:01]} {[%emt 00:02:00]} Be3 {[%clk 00:44:17]} {[%emt 00:00:15]} 47.
Ba4 {[%clk 00:28:16]} {[%emt 00:00:15]} Bf2 {[%clk 00:44:24]} {[%emt 00:00:22]}
48. Kc4 {[%clk 00:27:20]} {[%emt 00:01:26]} f6 {[%clk 00:43:48]} {[%emt
00:01:07]} 49. Bb3 {[%clk 00:26:12]} {[%emt 00:01:38]} Ba7 {[%clk 00:43:22]}
{[%emt 00:00:55]} 50. Kb5 {[%clk 00:24:34]} {[%emt 00:02:09]} Be3 {[%clk
00:43:30]} {[%emt 00:00:21]} 51. Kc4 {[%clk 00:24:01]} {[%emt 00:01:03]} Ba7
{[%clk 00:43:28]} {[%emt 00:00:32]} 52. Kd3 {[%clk 00:23:21]} {[%emt 00:01:09]}
f5 {[%clk 00:41:53]} {[%emt 00:02:06]} 53. exf5 {[%clk 00:20:40]} {[%emt
00:03:10]} exf5 {[%clk 00:42:13]} {[%emt 00:00:10]} 54. Bf7 {[%clk 00:17:42]}
{[%emt 00:03:27]} Ke7 {[%clk 00:40:13]} {[%emt 00:02:31]} 55. Bg6 {[%clk
00:16:31]} {[%emt 00:01:41]} Kf6 {[%clk 00:40:22]} {[%emt 00:00:21]} 56. Be8
{[%clk 00:16:39]} {[%emt 00:00:21]} Ke7 {[%clk 00:40:24]} {[%emt 00:00:29]} 57.
Bb5 {[%clk 00:16:44]} {[%emt 00:00:25]} Kd6 {[%clk 00:40:32]} {[%emt 00:00:21]}
58. Ke2 {[%clk 00:16:24]} {[%emt 00:00:51]} Ke5 {[%clk 00:40:19]} {[%emt
00:00:43]} 59. Kf1 {[%clk 00:16:12]} {[%emt 00:00:42]} Kf4 {[%clk 00:39:33]}
{[%emt 00:01:16]} 60. Kg2 {[%clk 00:16:06]} {[%emt 00:00:37]} g4 {[%clk
00:39:25]} {[%emt 00:00:38]} 61. fxg4 {[%clk 00:12:48]} {[%emt 00:03:47]} fxg4
{[%clk 00:39:27]} {[%emt 00:00:28]} 62. Be8 {[%clk 00:11:24]} {[%emt 00:01:55]}
Bb6 {[%clk 00:39:05]} {[%emt 00:00:52]} 63. Bd7 {[%clk 00:11:05]} {[%emt
00:00:49]} Ba7 {[%clk 00:39:05]} {[%emt 00:00:30]} 64. h3 {[%clk 00:10:32]}
{[%emt 00:01:03]} gxh3+ {[%clk 00:39:23]} {[%emt 00:00:11]} 65. Kxh3 {[%clk
00:10:49]} {[%emt 00:00:14]} Kg5 {[%clk 00:39:39]} {[%emt 00:00:14]} 66. Kg3
{[%clk 00:10:11]} {[%emt 00:01:08]} Bb6 {[%clk 00:39:51]} {[%emt 00:00:18]} 67.
Kf3 {[%clk 00:10:04]} {[%emt 00:00:37]} Ba7 {[%clk 00:40:08]} {[%emt 00:00:11]}
68. Ke4 {[%emt 00:00:57]} 1/2-1/2

[Event "NJSK 2023 Meisjes C"]
[Site "Almelo, Netherlands"]
[Date "2023.05.06"]
[Round "7.4"]
[White "Rutten, Lenthe"]
[Black "Jorritsma, Eli Alia"]
[Result "0-1"]
[TimeControl "90min/40moves + 30min + 30sec/move"]
[WhiteElo "604"]
[BlackElo "1330"]

1. d4 {[%clk 01:30:59]} g6 {[%clk 01:30:53]} {[%emt 00:00:08]} 2. e4 {[%clk
01:31:09]} {[%emt 00:00:20]} Bg7 {[%clk 01:31:13]} {[%emt 00:00:09]} 3. Nf3
{[%clk 01:31:09]} {[%emt 00:00:30]} d6 {[%clk 01:31:14]} {[%emt 00:00:29]} 4.
Nc3 {[%clk 01:30:46]} {[%emt 00:00:53]} Nd7 {[%clk 01:31:03]} {[%emt 00:00:40]}
5. Bd2 {[%clk 01:29:49]} {[%emt 00:01:28]} a6 {[%clk 01:30:08]} {[%emt
00:01:26]} 6. a4 {[%clk 01:29:07]} {[%emt 00:01:12]} Ngf6 {[%clk 01:29:22]}
{[%emt 00:01:16]} 7. Bc4 {[%clk 01:28:42]} {[%emt 00:00:55]} h6 {[%clk
01:26:59]} {[%emt 00:02:53]} 8. O-O {[%clk 01:27:09]} {[%emt 00:02:03]} O-O
{[%clk 01:26:16]} {[%emt 00:01:12]} 9. e5 {[%clk 01:26:43]} {[%emt 00:00:56]}
dxe5 {[%clk 01:24:55]} {[%emt 00:01:52]} 10. dxe5 {[%clk 01:25:57]} {[%emt
00:01:16]} Ng4 {[%clk 01:15:37]} {[%emt 00:09:47]} 11. e6 {[%clk 01:24:39]}
{[%emt 00:01:48]} Nde5 {[%clk 01:12:20]} {[%emt 00:03:47]} 12. exf7+ {[%clk
01:22:45]} {[%emt 00:02:24]} Nxf7 {[%clk 01:12:17]} {[%emt 00:00:33]} 13. Bxf7+
{[%clk 01:21:20]} {[%emt 00:01:56]} Rxf7 {[%clk 01:11:24]} {[%emt 00:01:23]} 14.
Re1 {[%clk 01:19:57]} {[%emt 00:01:53]} b6 {[%clk 01:04:04]} {[%emt 00:07:51]}
15. h3 {[%clk 01:18:57]} {[%emt 00:01:30]} Nf6 {[%clk 00:56:22]} {[%emt
00:08:11]} 16. Ne5 {[%clk 01:18:21]} {[%emt 00:01:06]} Rf8 {[%clk 00:50:09]}
{[%emt 00:06:44]} 17. Nxg6 {[%clk 01:17:52]} {[%emt 00:00:59]} Re8 {[%clk
00:49:37]} {[%emt 00:01:02]} 18. Bf4 {[%clk 01:17:08]} {[%emt 00:01:14]} Qxd1
{[%clk 00:45:07]} {[%emt 00:05:01]} 19. Raxd1 {[%clk 01:17:04]} {[%emt
00:00:34]} Kf7 {[%clk 00:42:29]} {[%emt 00:03:09]} 20. Nh4 {[%clk 01:15:26]}
{[%emt 00:02:08]} c5 {[%clk 00:39:29]} {[%emt 00:03:31]} 21. Bc7 {[%clk
01:13:57]} {[%emt 00:01:59]} Nd7 {[%clk 00:38:20]} {[%emt 00:01:39]} 22. Nf5
{[%clk 01:11:39]} {[%emt 00:02:47]} Bxc3 {[%clk 00:36:31]} {[%emt 00:02:19]} 23.
bxc3 {[%clk 01:11:19]} {[%emt 00:00:50]} h5 {[%clk 00:35:59]} {[%emt 00:01:02]}
24. Rd3 {[%clk 01:10:05]} {[%emt 00:01:44]} Nf6 {[%clk 00:33:58]} {[%emt
00:02:31]} 25. Nh4 {[%clk 01:09:09]} {[%emt 00:01:26]} b5 {[%clk 00:33:08]}
{[%emt 00:01:21]} 26. Rd8 {[%clk 01:07:45]} {[%emt 00:01:53]} Rxd8 {[%clk
00:30:20]} {[%emt 00:03:18]} 27. Bxd8 {[%clk 01:07:54]} {[%emt 00:00:21]} Be6
{[%clk 00:29:53]} {[%emt 00:00:58]} 28. Bb6 {[%clk 01:06:45]} {[%emt 00:01:39]}
c4 {[%clk 00:28:56]} {[%emt 00:01:28]} 29. axb5 {[%clk 01:05:50]} {[%emt
00:01:24]} axb5 {[%clk 00:29:13]} {[%emt 00:00:14]} 30. Rb1 {[%clk 01:05:25]}
{[%emt 00:00:55]} Bd7 {[%clk 00:27:35]} {[%emt 00:02:08]} 31. f3 {[%clk
01:04:54]} {[%emt 00:01:01]} Nd5 {[%clk 00:26:54]} {[%emt 00:01:11]} 32. g4
{[%clk 01:02:18]} {[%emt 00:03:05]} Nxb6 {[%clk 00:25:46]} {[%emt 00:01:38]} 33.
gxh5 {[%clk 01:02:18]} {[%emt 00:00:29]} Rh8 {[%clk 00:24:54]} {[%emt
00:01:22]} 0-1

[Event "NJSK 2023 Meisjes C"]
[Site "Almelo, Netherlands"]
[Date "2023.05.06"]
[Round "7.5"]
[White "Grigoriu, Eva"]
[Black "Ganeshram, Niranjana"]
[Result "0-1"]
[TimeControl "90min/40moves + 30min + 30sec/move"]
[WhiteElo "1045"]
[BlackElo "775"]

1. e4 {[%clk 01:30:58]} {[%emt 00:00:01]} e5 {[%clk 01:30:54]} {[%emt
00:00:07]} 2. Nf3 {[%clk 01:31:22]} {[%emt 00:00:06]} Nc6 {[%clk 01:31:10]}
{[%emt 00:00:14]} 3. Bc4 {[%clk 01:31:43]} {[%emt 00:00:09]} Bc5 {[%clk
01:31:24]} {[%emt 00:00:15]} 4. d3 {[%clk 01:32:05]} {[%emt 00:00:08]} h6
{[%clk 01:31:48]} {[%emt 00:00:06]} 5. c3 {[%clk 01:32:05]} {[%emt 00:00:30]}
Nf6 {[%clk 01:32:09]} {[%emt 00:00:09]} 6. h3 {[%clk 01:32:10]} {[%emt
00:00:24]} O-O {[%clk 01:30:45]} {[%emt 00:01:55]} 7. O-O {[%clk 01:31:45]}
{[%emt 00:00:54]} d6 {[%clk 01:31:05]} {[%emt 00:00:11]} 8. Re1 {[%clk
01:31:56]} {[%emt 00:00:19]} Ne7 {[%clk 01:31:21]} {[%emt 00:00:14]} 9. d4
{[%clk 01:31:25]} {[%emt 00:01:01]} exd4 {[%clk 01:31:20]} {[%emt 00:00:31]} 10.
cxd4 {[%clk 01:31:43]} {[%emt 00:00:10]} Bb4 {[%clk 01:31:38]} {[%emt
00:00:13]} 11. Bd2 {[%clk 01:31:23]} {[%emt 00:00:50]} Bxd2 {[%clk 01:31:15]}
{[%emt 00:00:53]} 12. Nbxd2 {[%clk 01:31:45]} {[%emt 00:00:08]} b6 {[%clk
01:31:33]} {[%emt 00:00:11]} 13. d5 {[%clk 01:30:39]} {[%emt 00:01:35]} Bd7
{[%clk 01:30:53]} {[%emt 00:01:10]} 14. Qc2 {[%clk 01:28:50]} {[%emt 00:02:20]}
Qc8 {[%clk 01:30:30]} {[%emt 00:00:54]} 15. Kh2 {[%clk 01:28:22]} {[%emt
00:00:57]} b5 {[%clk 01:29:54]} {[%emt 00:01:06]} 16. Bd3 {[%clk 01:28:21]}
{[%emt 00:00:30]} Nh5 {[%clk 01:29:22]} {[%emt 00:01:03]} 17. Nd4 {[%clk
01:26:55]} {[%emt 00:01:55]} Nf4 {[%clk 01:29:31]} {[%emt 00:00:21]} 18. Re3
{[%clk 01:24:52]} {[%emt 00:02:33]} Neg6 {[%clk 01:28:52]} {[%emt 00:01:10]} 19.
Bxb5 {[%clk 01:22:55]} {[%emt 00:02:27]} Bxb5 {[%clk 01:29:01]} {[%emt
00:00:20]} 20. Nxb5 {[%clk 01:23:21]} {[%emt 00:00:03]} Nh4 {[%clk 01:29:09]}
{[%emt 00:00:23]} 21. Rg3 {[%clk 01:20:31]} {[%emt 00:03:19]} Nhxg2 {[%clk
01:28:54]} {[%emt 00:00:46]} 22. Rxg2 {[%clk 01:20:52]} {[%emt 00:00:09]} Qxh3+
{[%clk 01:29:14]} {[%emt 00:00:10]} 23. Kg1 {[%clk 01:20:51]} {[%emt 00:00:31]}
Qxg2# {[%clk 01:29:06]} {[%emt 00:00:07]} 0-1